fUST/lending_fUST_20250408
["ID","MTS","AMOUNT","RATE_DAILY","PERIOD"]
[357457716,1744073469388,-595.32,0.00024931,2]
[357457717,1744073469399,-500.0,0.00024931,2]
[357457718,1744073469409,-1478.81,0.00024931,2]
[357457719,1744073469418,-500.0,0.00024931,2]
[357457720,1744073469427,-523.17,0.00024931,2]
[357457721,1744073469437,-500.0,0.00024931,2]
[357457722,1744073469446,-500.0,0.00024931,2]
[357457723,1744073469456,-1266.69,0.00024931,2]
[357457724,1744073469465,-1197.93,0.00024931,2]
[357457725,1744073469474,-528.61,0.00024931,2]
[357457726,1744073469483,-878.01,0.00024931,2]
[357457727,1744073469492,-500.0,0.00024931,2]
[357457728,1744073469501,-500.0,0.00024931,2]
[357457729,1744073469511,-500.0,0.00024931,2]
[357457730,1744073469520,-993.51,0.00024931,2]
[357457731,1744073469529,-1465.53,0.00024931,2]
[357457732,1744073469539,-500.0,0.00024931,2]
[357457733,1744073469548,-500.0,0.00024931,2]
[357457734,1744073469557,-500.0,0.00024931,2]
[357457735,1744073469566,-478.00299089,0.00024931,2]
[357457736,1744073469575,-500.0,0.00024931,2]
[357457737,1744073469585,-500.0,0.00024931,2]
[357457738,1744073469595,-545.8,0.00024931,2]
[357457739,1744073469604,-204.98038133,0.00024931,2]
[357457740,1744073469613,-500.0,0.00024931,2]
[357457741,1744073469623,-500.0,0.00024931,2]
[357457742,1744073469632,-689.47,0.00024931,2]
[357457743,1744073469641,-500.0,0.00024931,2]
[357457744,1744073469652,-591.84,0.00024931,2]
[357457745,1744073469661,-500.0,0.00024931,2]
[357457746,1744073469670,-1000.21,0.00024931,2]
[357457747,1744073469680,-500.0,0.00024931,2]
[357457748,1744073469690,-1104.26,0.00024931,2]
[357457749,1744073469699,-518.15,0.00024931,2]
[357457750,1744073469708,-500.0,0.00024931,2]
[357457751,1744073469717,-500.0,0.00024931,2]
[357457752,1744073469727,-500.0,0.00024931,2]
[357457753,1744073469736,-500.0,0.00024931,2]
[357457754,1744073469748,-500.0,0.00024931,2]
[357457755,1744073469758,-500.0,0.00024931,2]
[357457756,1744073469767,-500.0,0.00024931,2]
[357457757,1744073469777,-500.0,0.00024931,2]
[357457758,1744073469786,-1404.5,0.00024931,2]
[357457759,1744073469796,-522.25,0.00024931,2]
[357457760,1744073469806,-1550.56,0.00024931,2]
[357457761,1744073469816,-500.0,0.00024931,2]
[357457762,1744073469825,-500.0,0.00024931,2]
[357457763,1744073469834,-500.0,0.00024931,2]
[357457764,1744073469844,-559.21,0.00024931,2]
[357457765,1744073469854,-1304.88,0.00024931,2]
[357457766,1744073469863,-526.27630408,0.00024931,2]
[357457767,1744073469873,-2906.86,0.00024931,2]
[357457768,1744073469883,-567.46,0.00024931,2]
[357457769,1744073469893,-636.08,0.00024931,2]
[357457770,1744073469903,-181.0615083,0.00024931,2]
[357457771,1744073470021,-1332.6,0.00024931,2]
[357457772,1744073470041,-500.0,0.00024931,2]
[357457773,1744073470052,-2435.82,0.00024931,2]
[357457774,1744073470061,-564.44,0.00024931,2]
[357457775,1744073470070,-816.67,0.00024931,2]
[357457776,1744073470080,-307.07026336,0.00024931,2]
[357457777,1744073470089,-2284.41,0.00024931,2]
[357457778,1744073470098,-539.99,0.00024931,2]
[357457779,1744073470108,-500.0,0.00024931,2]
[357457780,1744073470117,-774.84,0.00024931,2]
[357457781,1744073470126,-1559.28,0.00024931,2]
[357457782,1744073470136,-1168.9,0.00024931,2]
[357457783,1744073470145,-2749.42,0.00024931,2]
[357457784,1744073470160,-500.0,0.00024931,2]
[357457785,1744073470170,-500.0,0.00024931,2]
[357457786,1744073470180,-1353.57,0.00024931,2]
[357457787,1744073470190,-500.0,0.00024931,2]
[357457788,1744073470199,-500.0,0.00024931,2]
[357457789,1744073470209,-1377.29,0.00024931,2]
[357457790,1744073470218,-500.0,0.00024931,2]
[357457791,1744073470227,-500.0,0.00024931,2]
[357457792,1744073470237,-2417.25,0.00024931,2]
[357457793,1744073470247,-5291.2,0.00024931,2]
[357457794,1744073470256,-375.45586406,0.00024931,2]
[357457795,1744073470265,-1100.81,0.00024931,2]
[357457796,1744073470275,-500.0,0.00024931,2]
[357457797,1744073470285,-3065.26,0.00024931,2]
[357457798,1744073470298,-500.0,0.00024931,2]
[357457799,1744073470307,-1661.41,0.00024931,2]
[357457800,1744073470317,-957.37,0.00024931,2]
[357457801,1744073470328,-500.0,0.00024931,2]
[357457802,1744073470339,-500.0,0.00024931,2]
[357457803,1744073470349,-500.0,0.00024931,2]
[357457804,1744073470358,-1814.5,0.00024931,2]
[357457805,1744073470368,-1937.54,0.00024931,2]
[357457806,1744073470378,-631.45,0.00024931,2]
[357457807,1744073470387,-500.0,0.00024931,2]
[357457808,1744073470398,-500.0,0.00024931,2]
[357457809,1744073470407,-500.0,0.00024931,2]
[357457810,1744073470417,-1807.0,0.00024931,2]
[357457811,1744073470427,-1563.99,0.00024931,2]
[357457812,1744073470436,-500.0,0.00024931,2]
[357457813,1744073470445,-765.88,0.00024931,2]
[357457814,1744073470455,-500.0,0.00024931,2]
[357457815,1744073470464,-500.0,0.00024931,2]
[357457816,1744073470474,-500.0,0.00024931,2]
[357457817,1744073470484,-1094.87,0.00024931,2]
[357457818,1744073470494,-844.05,0.00024931,2]
[357457819,1744073470504,-500.0,0.00024931,2]
[357457820,1744073470514,-1239.2,0.00024931,2]
[357457821,1744073470523,-500.0,0.00024931,2]
[357457822,1744073470533,-500.0,0.00024931,2]
[357457823,1744073470543,-993.95,0.00024931,2]
[357457824,1744073470553,-500.0,0.00024931,2]
[357457825,1744073470563,-1205.59,0.00024931,2]
[357457826,1744073470573,-1288.17,0.00024931,2]
[357457827,1744073470583,-500.0,0.00024931,2]
[357457828,1744073470593,-500.0,0.00024931,2]
[357457829,1744073470602,-500.0,0.00024931,2]
[357457830,1744073470612,-1146.31,0.00024931,2]
[357457831,1744073470622,-339.5949324,0.00024931,2]
[357457832,1744073470632,-8516.27,0.00024931,2]
[357457833,1744073470642,-515.27,0.00024931,2]
[357457834,1744073470651,-500.0,0.00024931,2]
[357457835,1744073470661,-808.45,0.00024931,2]
[357457836,1744073470671,-1749.01,0.00024931,2]
[357457837,1744073470681,-500.0,0.00024931,2]
[357457838,1744073470690,-2424.22,0.00024931,2]
[357457839,1744073470699,-1135.59,0.00024931,2]
[357457840,1744073470709,-523.31,0.00024931,2]
[357457841,1744073470719,-1890.65,0.00024931,2]
[357457842,1744073470728,-500.0,0.00024931,2]
[357457843,1744073470738,-500.0,0.00024931,2]
[357457844,1744073470748,-1098.37,0.00024931,2]
[357457845,1744073470758,-500.0,0.00024931,2]
[357457846,1744073470767,-223.0315306,0.00025111,2]
[357457847,1744073470778,-693.87128215,0.00025171,2]
[357457848,1744073470789,-594.95,0.00025205,2]
[357457849,1744073470799,-507.25,0.00025205,2]
[357457850,1744073470809,-518.90451305,0.00025205,2]
[357457851,1744073470819,-1284.95,0.00025205,2]
[357457852,1744073470829,-519.3,0.00025205,2]
[357457853,1744073470838,-500.0,0.00025205,2]
[357457854,1744073470848,-500.0,0.00025205,2]
[357457855,1744073470858,-515.54,0.00025205,2]
[357457856,1744073470868,-774.11,0.00025205,2]
[357457857,1744073470878,-500.0,0.00025205,2]
[357457858,1744073470888,-500.0,0.00025205,2]
[357457859,1744073470897,-500.0,0.00025205,2]
[357457860,1744073470907,-500.0,0.00025205,2]
[357457861,1744073470916,-500.0,0.00025205,2]
[357457862,1744073470927,-500.0,0.00025205,2]
[357457863,1744073470941,-500.0,0.00025205,2]
[357457864,1744073470950,-500.0,0.00025205,2]
[357457865,1744073470960,-500.0,0.00025205,2]
[357457866,1744073470970,-500.0,0.00025205,2]
[357457867,1744073470980,-620.05993684,0.00025205,2]
[357457868,1744073470989,-500.0,0.00025205,2]
[357457869,1744073470999,-637.58,0.00025205,2]
[357457870,1744073471011,-619.99,0.00025205,2]
[357457871,1744073471021,-500.0,0.00025205,2]
[357457872,1744073471030,-500.0,0.00025205,2]
[357457873,1744073471040,-500.0,0.00025205,2]
[357457874,1744073471050,-500.0,0.00025205,2]
[357457875,1744073471059,-551.52,0.00025205,2]
[357457876,1744073471069,-762.18,0.00025205,2]
[357457877,1744073471078,-500.0,0.00025205,2]
[357457878,1744073471088,-610.61,0.00025205,2]
[357457879,1744073471098,-500.0,0.00025205,2]
[357457880,1744073471107,-798.41,0.00025205,2]
[357457881,1744073471117,-666.56,0.00025205,2]
[357457882,1744073471126,-500.0,0.00025205,2]
[357457883,1744073471136,-568.42,0.00025205,2]
[357457884,1744073471146,-500.0,0.00025205,2]
[357457885,1744073471156,-595.32,0.00025205,2]
[357457886,1744073471166,-500.0,0.00025205,2]
[357457887,1744073471175,-1478.81,0.00025205,2]
[357457888,1744073471185,-500.0,0.00025205,2]
[357457889,1744073471195,-523.17,0.00025205,2]
[357457890,1744073471205,-500.0,0.00025205,2]
[357457891,1744073471214,-500.0,0.00025205,2]
[357457892,1744073471224,-1266.69,0.00025205,2]
[357457893,1744073471234,-442.522977,0.00025205,7]
[357457894,1744073471244,-1197.93,0.00025205,2]
[357457895,1744073471254,-442.522977,0.00025205,7]
[357457896,1744073471263,-528.61,0.00025205,2]
[357457897,1744073471273,-878.01,0.00025205,2]
[357457898,1744073471282,-500.0,0.00025205,2]
[357457899,1744073471292,-500.0,0.00025205,2]
[357457900,1744073471302,-500.0,0.00025205,2]
[357457901,1744073471312,-993.51,0.00025205,2]
[357457902,1744073471322,-500.0,0.00025205,2]
[357457903,1744073471331,-500.0,0.00025205,2]
[357457904,1744073471342,-1465.53,0.00025205,2]
[357457905,1744073471352,-500.0,0.00025205,2]
[357457906,1744073471362,-500.0,0.00025205,2]
[357457907,1744073471372,-500.0,0.00025205,2]
[357457908,1744073471382,-545.8,0.00025205,2]
[357457909,1744073471391,-299.48529541,0.00025205,2]
[357457910,1744073471401,-500.0,0.00025205,2]
[357457911,1744073471410,-689.47,0.00025205,2]
[357457912,1744073471420,-500.0,0.00025205,2]
[357457913,1744073471429,-591.84,0.00025205,2]
[357457914,1744073471439,-500.0,0.00025205,2]
[357457915,1744073471449,-1000.21,0.00025205,2]
[357457916,1744073471459,-500.0,0.00025205,2]
[357457917,1744073471469,-1104.26,0.00025205,2]
[357457918,1744073471478,-518.15,0.00025205,2]
[357457919,1744073471488,-500.0,0.00025205,2]
[357457920,1744073471498,-500.0,0.00025205,2]
[357457921,1744073471509,-194.25223658,0.00025205,2]
[357457922,1744073471518,-500.0,0.00025205,2]
[357457923,1744073471528,-500.0,0.00025205,2]
[357457924,1744073471538,-500.0,0.00025205,2]
[357457925,1744073471549,-500.0,0.00025205,2]
[357457926,1744073471559,-500.0,0.00025205,2]
[357457927,1744073471569,-1404.5,0.00025205,2]
[357457928,1744073471579,-522.25,0.00025205,2]
[357457929,1744073471589,-500.0,0.00025205,2]
[357457930,1744073471599,-1550.56,0.00025205,2]
[357457931,1744073471609,-500.0,0.00025205,2]
[357457932,1744073471618,-500.0,0.00025205,2]
[357457933,1744073471628,-559.21,0.00025205,2]
[357457934,1744073471637,-1304.88,0.00025205,2]
[357457935,1744073471647,-2906.86,0.00025205,2]
[357457936,1744073471660,-567.46,0.00025205,2]
[357457937,1744073471670,-636.08,0.00025205,2]
[357457938,1744073471679,-1332.6,0.00025205,2]
[357457939,1744073471689,-500.0,0.00025205,2]
[357457940,1744073471699,-2435.82,0.00025205,2]
[357457941,1744073471709,-564.44,0.00025205,2]
[357457942,1744073471718,-816.67,0.00025205,2]
[357457943,1744073471729,-2284.41,0.00025205,2]
[357457944,1744073471738,-539.99,0.00025205,2]
[357457945,1744073471748,-616.56551254,0.00025205,2]
[357457946,1744073471758,-774.84,0.00025205,2]
[357457947,1744073471769,-1559.28,0.00025205,2]
[357457948,1744073471779,-1168.9,0.00025205,2]
[357457949,1744073471789,-2749.42,0.00025205,2]
[357457950,1744073471799,-620.21302781,0.00025205,2]
[357457951,1744073471810,-500.0,0.00025205,2]
[357457952,1744073471820,-1353.57,0.00025205,2]
[357457953,1744073471831,-500.0,0.00025205,2]
[357457954,1744073471842,-500.0,0.00025205,2]
[357457955,1744073471852,-1377.29,0.00025205,2]
[357457956,1744073471862,-500.0,0.00025205,2]
[357457957,1744073471871,-454.01450457,0.00025205,2]
[357457958,1744073471881,-2417.25,0.00025205,2]
[357457959,1744073471891,-5291.2,0.00025205,2]
[357457960,1744073471901,-1100.81,0.00025205,2]
[357457961,1744073471911,-500.0,0.00025205,2]
[357457962,1744073471921,-3065.26,0.00025205,2]
[357457963,1744073471934,-500.0,0.00025205,2]
[357457964,1744073471944,-1661.41,0.00025205,2]
[357457965,1744073471954,-957.37,0.00025205,2]
[357457966,1744073471964,-500.0,0.00025205,2]
[357457967,1744073471974,-500.0,0.00025205,2]
[357457968,1744073471984,-500.0,0.00025205,2]
[357457969,1744073471993,-1814.5,0.00025205,2]
[357457970,1744073472003,-1937.54,0.00025205,2]
[357457971,1744073472016,-631.45,0.00025205,2]
[357457972,1744073472026,-500.0,0.00025205,2]
[357457973,1744073472036,-500.0,0.00025205,2]
[357457974,1744073472045,-500.0,0.00025205,2]
[357457975,1744073472055,-1807.0,0.00025205,2]
[357457976,1744073472065,-1563.99,0.00025205,2]
[357457977,1744073472221,-500.0,0.00025205,2]
[357457978,1744073472233,-765.88,0.00025205,2]
[357457979,1744073472243,-500.0,0.00025205,2]
[357457980,1744073472253,-500.0,0.00025205,2]
[357457981,1744073472262,-500.0,0.00025205,2]
[357457982,1744073472272,-1094.87,0.00025205,2]
[357457983,1744073472282,-844.05,0.00025205,2]
[357457984,1744073472292,-500.0,0.00025205,2]
[357457985,1744073472302,-1239.2,0.00025205,2]
[357457986,1744073472312,-500.0,0.00025205,2]
[357457987,1744073472322,-500.0,0.00025205,2]
[357457988,1744073472332,-993.95,0.00025205,2]
[357457989,1744073472342,-500.0,0.00025205,2]
[357457990,1744073472352,-1205.59,0.00025205,2]
[357457991,1744073472362,-500.0,0.00025205,2]
[357457992,1744073472372,-500.0,0.00025205,2]
[357457993,1744073472382,-1288.17,0.00025205,2]
[357457994,1744073472392,-500.0,0.00025205,2]
[357457995,1744073472403,-1146.31,0.00025205,2]
[357457996,1744073472413,-8516.27,0.00025205,2]
[357457997,1744073472423,-515.27,0.00025205,2]
[357457998,1744073472433,-500.0,0.00025205,2]
[357457999,1744073472442,-808.45,0.00025205,2]
[357458000,1744073472452,-1749.01,0.00025205,2]
[357458001,1744073472462,-500.0,0.00025205,2]
[357458002,1744073472472,-2424.22,0.00025205,2]
[357458003,1744073472482,-1135.59,0.00025205,2]
[357458004,1744073472492,-523.31,0.00025205,2]
[357458005,1744073472502,-1890.65,0.00025205,2]
[357458006,1744073472511,-500.0,0.00025205,2]
[357458007,1744073472521,-500.0,0.00025205,2]
[357458008,1744073472531,-1098.37,0.00025205,2]
[357458009,1744073472541,-500.0,0.00025205,2]
[357458010,1744073472551,-4537.56647552,0.00025383,6]
[357458011,1744073472561,-594.95,0.00025479,2]
[357458012,1744073472570,-507.25,0.00025479,2]
[357458013,1744073472582,-1284.95,0.00025479,2]
[357458014,1744073472592,-519.3,0.00025479,2]
[357458015,1744073472602,-183.57973857,0.00025479,2]
[357458016,1744073472612,-500.0,0.00025479,2]
[357458017,1744073472623,-515.54,0.00025479,2]
[357458018,1744073472632,-774.11,0.00025479,2]
[357458019,1744073472642,-500.0,0.00025479,2]
[357458020,1744073472653,-500.0,0.00025479,2]
[357458021,1744073472662,-500.0,0.00025479,2]
[357458022,1744073472672,-500.0,0.00025479,2]
[357458023,1744073472683,-500.0,0.00025479,2]
[357458024,1744073472693,-500.0,0.00025479,2]
[357458025,1744073472703,-500.0,0.00025479,2]
[357458026,1744073472714,-500.0,0.00025479,2]
[357458027,1744073472723,-500.0,0.00025479,2]
[357458028,1744073472733,-500.0,0.00025479,2]
[357458029,1744073472743,-500.0,0.00025479,2]
[357458030,1744073472753,-637.58,0.00025479,2]
[357458031,1744073472763,-619.99,0.00025479,2]
[357458032,1744073472773,-500.0,0.00025479,2]
[357458033,1744073472783,-373.20306383,0.00025479,2]
[357458034,1744073472793,-500.0,0.00025479,2]
[357458035,1744073472804,-500.0,0.00025479,2]
[357458036,1744073472814,-551.52,0.00025479,2]
[357458037,1744073472823,-762.18,0.00025479,2]
[357458038,1744073472833,-500.0,0.00025479,2]
[357458039,1744073472842,-610.61,0.00025479,2]
[357458040,1744073472852,-292.51490645,0.00025479,2]
[357458041,1744073472862,-798.41,0.00025479,2]
[357458042,1744073472872,-666.56,0.00025479,2]
[357458043,1744073472881,-500.0,0.00025479,2]
[357458044,1744073472891,-568.42,0.00025479,2]
[357458045,1744073472903,-500.0,0.00025479,2]
[357458046,1744073472913,-595.32,0.00025479,2]
[357458047,1744073472922,-500.0,0.00025479,2]
[357458048,1744073472935,-1478.81,0.00025479,2]
[357458049,1744073472945,-500.0,0.00025479,2]
[357458050,1744073472954,-523.17,0.00025479,2]
[357458051,1744073472963,-600.257522,0.00025479,2]
[357458052,1744073472973,-561.7996841,0.00025479,2]
[357458053,1744073472982,-1266.69,0.00025479,2]
[357458054,1744073472992,-1197.93,0.00025479,2]
[357458055,1744073473001,-528.61,0.00025479,2]
[357458056,1744073473011,-878.01,0.00025479,2]
[357458057,1744073473022,-500.0,0.00025479,2]
[357458058,1744073473032,-500.0,0.00025479,2]
[357458059,1744073473041,-500.0,0.00025479,2]
[357458060,1744073473051,-993.51,0.00025479,2]
[357458061,1744073473060,-500.0,0.00025479,2]
[357458062,1744073473070,-500.0,0.00025479,2]
[357458063,1744073473080,-1465.53,0.00025479,2]
[357458064,1744073473090,-500.0,0.00025479,2]
[357458065,1744073473100,-500.0,0.00025479,2]
[357458066,1744073473110,-500.0,0.00025479,2]
[357458067,1744073473119,-545.8,0.00025479,2]
[357458068,1744073473129,-500.0,0.00025479,2]
[357458069,1744073473139,-689.47,0.00025479,2]
[357458070,1744073473149,-500.0,0.00025479,2]
[357458071,1744073473159,-591.84,0.00025479,2]
[357458072,1744073473169,-500.0,0.00025479,2]
[357458073,1744073473179,-1000.21,0.00025479,2]
[357458074,1744073473189,-500.0,0.00025479,2]
[357458075,1744073473198,-1104.26,0.00025479,2]
[357458076,1744073473208,-518.15,0.00025479,2]
[357458077,1744073473218,-500.0,0.00025479,2]
[357458078,1744073473227,-500.0,0.00025479,2]
[357458079,1744073473237,-500.0,0.00025479,2]
[357458080,1744073473247,-500.0,0.00025479,2]
[357458081,1744073473258,-500.0,0.00025479,2]
[357458082,1744073473267,-500.0,0.00025479,2]
[357458083,1744073473277,-500.0,0.00025479,2]
[357458084,1744073473287,-1404.5,0.00025479,2]
[357458085,1744073473297,-522.25,0.00025479,2]
[357458086,1744073473307,-1550.56,0.00025479,2]
[357458087,1744073473316,-500.0,0.00025479,2]
[357458088,1744073473326,-500.0,0.00025479,2]
[357458089,1744073473335,-500.0,0.00025479,2]
[357458090,1744073473345,-559.21,0.00025479,2]
[357458091,1744073473354,-1304.88,0.00025479,2]
[357458092,1744073473365,-2906.86,0.00025479,2]
[357458093,1744073473375,-567.46,0.00025479,2]
[357458094,1744073473384,-636.08,0.00025479,2]
[357458095,1744073473394,-1332.6,0.00025479,2]
[357458096,1744073473404,-500.0,0.00025479,2]
[357458097,1744073473414,-2435.82,0.00025479,2]
[357458098,1744073473423,-564.44,0.00025479,2]
[357458099,1744073473433,-816.67,0.00025479,2]
[357458100,1744073473443,-2284.41,0.00025479,2]
[357458101,1744073473452,-539.99,0.00025479,2]
[357458102,1744073473462,-774.84,0.00025479,2]
[357458103,1744073473471,-1559.28,0.00025479,2]
[357458104,1744073473481,-1168.9,0.00025479,2]
[357458105,1744073473490,-2749.42,0.00025479,2]
[357458106,1744073473500,-500.0,0.00025479,2]
[357458107,1744073473510,-1353.57,0.00025479,2]
[357458108,1744073473519,-500.0,0.00025479,2]
[357458109,1744073473529,-500.0,0.00025479,2]
[357458110,1744073473539,-1377.29,0.00025479,2]
[357458111,1744073473548,-500.0,0.00025479,2]
[357458112,1744073473559,-2417.25,0.00025479,2]
[357458113,1744073473568,-5291.2,0.00025479,2]
[357458114,1744073473578,-1100.81,0.00025479,2]
[357458115,1744073473587,-500.0,0.00025479,2]
[357458116,1744073473597,-3065.26,0.00025479,2]
[357458117,1744073473607,-516.66254126,0.00025479,2]
[357458118,1744073473616,-1661.41,0.00025479,2]
[357458119,1744073473625,-957.37,0.00025479,2]
[357458120,1744073473635,-500.0,0.00025479,2]
[357458121,1744073473644,-500.0,0.00025479,2]
[357458122,1744073473654,-500.0,0.00025479,2]
[357458123,1744073473664,-1814.5,0.00025479,2]
[357458124,1744073473673,-1937.54,0.00025479,2]
[357458125,1744073473682,-631.45,0.00025479,2]
[357458126,1744073473692,-500.0,0.00025479,2]
[357458127,1744073473701,-453.15147832,0.00025479,2]
[357458128,1744073473711,-500.0,0.00025479,2]
[357458129,1744073473720,-1807.0,0.00025479,2]
[357458130,1744073473730,-1563.99,0.00025479,2]
[357458131,1744073473740,-500.0,0.00025479,2]
[357458132,1744073473750,-765.88,0.00025479,2]
[357458133,1744073473760,-500.0,0.00025479,2]
[357458134,1744073473771,-500.0,0.00025479,2]
[357458135,1744073473782,-500.0,0.00025479,2]
[357458136,1744073473792,-1094.87,0.00025479,2]
[357458137,1744073473803,-844.05,0.00025479,2]
[357458138,1744073473814,-500.0,0.00025479,2]
[357458139,1744073473824,-1239.2,0.00025479,2]
[357458140,1744073473834,-202.82888636,0.00025479,2]
[357458141,1744073473843,-500.0,0.00025479,2]
[357458142,1744073473853,-993.95,0.00025479,2]
[357458143,1744073473862,-500.0,0.00025479,2]
[357458144,1744073473873,-1205.59,0.00025479,2]
[357458145,1744073473884,-500.0,0.00025479,2]
[357458146,1744073473893,-500.0,0.00025479,2]
[357458147,1744073473905,-1288.17,0.00025479,2]
[357458148,1744073473915,-500.0,0.00025479,2]
[357458149,1744073473927,-1146.31,0.00025479,2]
[357458150,1744073473943,-8516.27,0.00025479,2]
[357458151,1744073473953,-515.27,0.00025479,2]
[357458152,1744073473964,-500.0,0.00025479,2]
[357458153,1744073473973,-808.45,0.00025479,2]
[357458154,1744073473985,-1749.01,0.00025479,2]
[357458155,1744073473994,-500.0,0.00025479,2]
[357458156,1744073474004,-2424.22,0.00025479,2]
[357458157,1744073474014,-1135.59,0.00025479,2]
[357458158,1744073474024,-523.31,0.00025479,2]
[357458159,1744073474033,-1890.65,0.00025479,2]
[357458160,1744073474043,-500.0,0.00025479,2]
[357458161,1744073474053,-500.0,0.00025479,2]
[357458162,1744073474062,-1098.37,0.00025479,2]
[357458163,1744073474072,-500.0,0.00025479,2]
[357458164,1744073474081,-156.310352,0.00025626,2]
[357458165,1744073474092,-594.95,0.00025753,2]
[357458166,1744073474101,-507.25,0.00025753,2]
[357458167,1744073474243,-1284.95,0.00025753,2]
[357458168,1744073474253,-519.3,0.00025753,2]
[357458169,1744073474263,-500.0,0.00025753,2]
[357458170,1744073474274,-515.54,0.00025753,2]
[357458171,1744073474284,-774.11,0.00025753,2]
[357458172,1744073474293,-500.0,0.00025753,2]
[357458173,1744073474303,-500.0,0.00025753,2]
[357458174,1744073474312,-500.0,0.00025753,2]
[357458175,1744073474322,-500.0,0.00025753,2]
[357458176,1744073474331,-500.0,0.00025753,2]
[357458177,1744073474340,-500.0,0.00025753,2]
[357458178,1744073474350,-285.89543412,0.00025753,2]
[357458179,1744073474360,-500.0,0.00025753,2]
[357458180,1744073474370,-212.88260128,0.00025753,2]
[357458181,1744073474380,-500.0,0.00025753,2]
[357458182,1744073474390,-500.0,0.00025753,2]
[357458183,1744073474400,-637.58,0.00025753,2]
[357458184,1744073474410,-619.99,0.00025753,2]
[357458185,1744073474419,-500.0,0.00025753,2]
[357458186,1744073474429,-500.0,0.00025753,2]
[357458187,1744073474439,-500.0,0.00025753,2]
[357458188,1744073474449,-551.52,0.00025753,2]
[357458189,1744073474458,-762.18,0.00025753,2]
[357458190,1744073474468,-500.0,0.00025753,2]
[357458191,1744073474477,-610.61,0.00025753,2]
[357458192,1744073474486,-798.41,0.00025753,2]
[357458193,1744073474495,-666.56,0.00025753,2]
[357458194,1744073474505,-500.0,0.00025753,2]
[357458195,1744073474514,-568.42,0.00025753,2]
[357458196,1744073474523,-500.0,0.00025753,2]
[357458197,1744073474533,-595.32,0.00025753,2]
[357458198,1744073474543,-500.0,0.00025753,2]
[357458199,1744073474553,-1478.81,0.00025753,2]
[357458200,1744073474563,-237.19,0.00025753,2]
[357458201,1744073474572,-523.17,0.00025753,2]
[357458202,1744073474582,-1266.69,0.00025753,2]
[357458203,1744073474592,-1197.93,0.00025753,2]
[357458204,1744073474602,-528.61,0.00025753,2]
[357458205,1744073474612,-878.01,0.00025753,2]
[357458206,1744073474621,-500.0,0.00025753,2]
[357458207,1744073474630,-500.0,0.00025753,2]
[357458208,1744073474640,-500.0,0.00025753,2]
[357458209,1744073474650,-993.51,0.00025753,2]
[357458210,1744073474666,-520.32831727,0.00025753,2]
[357458211,1744073474676,-500.0,0.00025753,2]
[357458212,1744073474687,-1465.53,0.00025753,2]
[357458213,1744073474697,-500.0,0.00025753,2]
[357458214,1744073474707,-500.0,0.00025753,2]
[357458215,1744073474717,-500.0,0.00025753,2]